bitfinex/quotes_ETHUSD_20250529
["timestamp","ask_amount","ask_price","bid_price","bid_amount"]
[1748485749917,3.64206162,2745.7,2744.8,0.32775382]
[1748485749918,7.029,2745.6,2745.0,3.64290293]
[1748485750126,8.0,2746.9,2745.0,3.64290293]
[1748485750127,3.64140571,2746.2,2745.5,3.64224967]
[1748485750353,3.64011939,2747.2,2745.7,3.64196188]
[1748485750354,1.0559,2746.3,2745.7,3.64196188]
[1748485750530,1.0559,2746.3,2745.6,0.32779569]
[1748485750531,1.0559,2746.3,2745.8,0.32779569]
[1748485750745,3.64153366,2746.1,2745.9,0.32779569]
[1748485750970,3.64162515,2746.1,2746.0,0.32807482]
[1748485751255,3.64162515,2746.1,2744.7,0.32811426]
[1748485751425,3.64228778,2745.6,2744.8,0.32826278]
[1748485751622,3.64228778,2745.6,2744.7,8.32811426]
[1748485751623,7.014,2745.5,2744.9,0.52526979]
[1748485751829,7.014,2745.5,2745.0,0.32822847]
[1748485752029,3.6426666,2745.3,2744.7,0.32811426]
[1748485752363,3.64253435,2745.4,2744.8,0.52579343]
[1748485752564,3.64253435,2745.4,2744.9,0.52579343]
[1748485752725,10.65638062,2745.5,2745.0,0.52574516]
[1748485752928,12.08624035,2745.5,2745.1,0.32859032]
[1748485753136,3.64248912,2745.4,2745.2,0.32859032]
[1748485753334,8.44385973,2745.5,2745.3,0.3285934]
[1748485753541,8.44385973,2745.5,2744.7,0.32811426]
[1748485753542,3.6425579,2745.4,2744.7,0.32811426]
[1748485753767,3.64311996,2744.9,2744.8,0.5257496]
[1748485753970,3.64311996,2744.9,2744.8,0.3285935]
[1748485754170,3.64311996,2744.9,2744.8,0.32880498]
[1748485754370,3.64325269,2744.8,2744.7,0.32811426]
[1748485754570,3.64325269,2744.8,2744.7,0.65672062]
[1748485754871,3.64325269,2744.8,2744.7,0.32811426]
[1748485755071,4.00757796,2744.8,2744.7,0.32811426]
[1748485756360,5.01377796,2744.8,2744.7,0.1025357]
[1748485757089,5.01377796,2744.8,2743.0,1.0975]
[1748485757090,3.64492035,2743.6,2743.0,1.0975]
[1748485757245,6.947,2743.9,2743.0,1.0975]
[1748485757649,3.64515541,2743.4,2743.0,1.0975]
[1748485757972,6.947,2743.9,2742.3,3.64649642]
[1748485757973,1.0843,2743.8,2742.3,3.64649642]
[1748485758159,3.64613639,2742.7,2742.1,0.05]
[1748485758361,6.926,2743.0,2742.4,0.1973219]
[1748485758969,10.57168977,2743.0,2742.4,0.1973219]
[1748485759168,3.64609528,2742.7,2742.4,0.1973219]
[1748485759395,3.64630811,2742.5,2742.4,0.1973219]
[1748485759598,3.64629465,2742.6,2742.4,0.1973219]
[1748485759742,3.64630811,2742.5,2742.4,0.1973219]
[1748485760456,3.64630811,2742.5,2742.1,0.05]
[1748485760457,3.64670702,2742.2,2742.1,0.05]
[1748485760666,10.53770702,2742.2,2742.1,0.05]
[1748485761401,11.64620702,2742.2,2742.1,0.05]
[1748485763386,4.75920702,2742.2,2742.1,0.05]
[1748485763590,10.50870702,2742.2,2742.1,0.05]
[1748485763985,3.64670702,2742.2,2742.1,0.05]
[1748485764663,10.49270702,2742.2,2742.1,0.05]
[1748485765267,3.64661925,2742.3,2742.1,0.05]
[1748485765470,1.1368,2742.7,2742.1,0.05]
[1748485765471,3.64670702,2742.2,2742.1,0.05]
[1748485767229,4.74069238,2742.2,2742.1,0.05]
[1748485768368,5.04833462,2742.2,2742.1,0.05]
[1748485768579,11.86333462,2742.2,2742.1,0.05]
[1748485769868,11.55569238,2742.2,2742.1,0.05]
[1748485771070,11.55569238,2742.2,2741.0,3.64819905]
[1748485771071,3.64748002,2741.7,2741.0,3.64819905]
[1748485771270,3.64738555,2741.7,2740.9,5.41224808]
[1748485771614,10.41827033,2741.8,2741.1,3.64808306]
[1748485771833,3.6473759,2741.7,2741.1,3.64808306]
[1748485772053,10.41825775,2741.8,2741.1,5.42015364]
[1748485772346,3.6462161,2742.6,2741.2,3.64801012]
[1748485772555,3.6462161,2742.6,2741.1,1.77207058]
[1748485772556,7.23730161,2742.5,2741.1,1.77207058]
[1748485772845,3.64687243,2742.1,2741.4,3.64773028]
[1748485773000,3.64687243,2742.1,2741.5,3.64763486]
[1748485773001,10.39687243,2742.1,2741.5,3.64763486]
[1748485773197,3.64663098,2742.3,2741.6,5.41952717]
[1748485773434,10.39366697,2742.3,2741.6,5.41952717]
[1748485773921,3.64630811,2742.5,2741.6,1.77207058]
[1748485774121,0.30764224,2742.3,2741.6,1.77207058]
[1748485774320,0.30764224,2742.3,2741.9,3.64699354]
[1748485774724,0.30764224,2742.3,2741.6,3.1140519]
[1748485774725,0.30764224,2742.3,2742.0,3.6469029]
[1748485774910,0.30764224,2742.3,2741.7,8.0]
[1748485775111,0.30764224,2742.3,2741.9,3.64699062]
[1748485775333,0.30764224,2742.3,2741.7,1.77207058]
[1748485775559,0.30764224,2742.3,2741.8,8.0]
[1748485775845,0.30764224,2742.3,2741.8,11.64723838]
[1748485776055,0.30764224,2742.3,2741.2,1.1003]
[1748485776056,3.64695449,2742.1,2741.2,1.1003]
[1748485776238,6.71,2742.1,2741.2,1.1003]
[1748485776551,6.71,2742.1,2741.3,3.64789476]
[1748485776552,3.64719788,2741.9,2741.3,3.64789476]
[1748485776877,3.64719788,2741.9,2741.2,9.1003]
[1748485776878,3.64719788,2741.9,2741.2,1.1003]
[1748485777010,3.64719788,2741.9,2741.3,3.64789061]
[1748485777663,6.71,2742.1,2741.2,1.1003]
[1748485777825,7.77645237,2742.1,2741.2,1.1003]
[1748485778022,3.64697301,2742.0,2741.2,12.74832411]
[1748485778347,11.42339756,2742.1,2741.2,1.1003]
[1748485778551,3.64750043,2741.7,2741.1,8.0]
[1748485778752,3.64750043,2741.7,2740.9,8.0]
[1748485778753,3.64762582,2741.6,2740.9,3.64832572]
[1748485779051,3.64756421,2741.6,2740.8,13.42059999]
[1748485779247,1.50701407,2742.0,2740.8,9.77207058]
[1748485779438,1.50701407,2742.0,2740.9,3.64843664]
[1748485779643,6.71,2742.1,2741.1,3.6480919]
[1748485780007,6.71,2742.1,2741.3,1.77207058]
[1748485780008,3.64744125,2741.7,2741.3,1.77207058]
[1748485780211,3.64708107,2742.0,2741.3,1.77207058]
[1748485780513,1.0291,2742.4,2741.3,5.41992511]
[1748485780514,3.64716266,2741.9,2741.3,5.41992511]
[1748485781529,3.64697273,2742.1,2741.3,6.32673905]
[1748485781765,3.64692507,2742.1,2741.3,6.3267609]
[1748485781975,3.64692507,2742.1,2741.4,3.64777121]
[1748485782126,3.64699322,2742.0,2741.4,3.64777121]
[1748485782772,3.64720271,2741.9,2741.2,8.0]
[1748485782976,6.642,2742.3,2740.8,10.73680444]
[1748485782977,3.64706408,2742.0,2741.3,3.64779802]
[1748485783269,3.64735624,2741.8,2741.1,3.64817044]
[1748485783435,10.95280236,2742.3,2741.2,3.64799989]
[1748485783436,3.64716651,2741.9,2741.2,3.64799989]
[1748485783635,3.64710602,2741.9,2741.3,3.6478682]
[1748485783836,3.64733081,2741.8,2741.0,3.64823175]
[1748485784049,7.3062,2742.3,2741.1,3.64812549]
[1748485784050,3.64739677,2741.7,2741.1,3.64812549]
[1748485784276,3.6473435,2741.8,2741.0,3.64830353]
[1748485784484,10.95279894,2742.3,2740.8,1.77207058]
[1748485784485,6.6,2741.7,2740.8,1.77207058]
[1748485784763,3.64767825,2741.5,2740.9,11.64836353]
[1748485784962,3.64756727,2741.6,2741.0,3.64829414]
[1748485785363,3.64754138,2741.6,2741.0,3.64823117]
[1748485785663,6.596,2741.7,2741.3,3.64778019]
[1748485785965,6.582,2741.8,2741.4,3.8451012]
[1748485786187,3.64698156,2742.0,2741.4,3.64767612]
[1748485786343,3.64698156,2742.0,2741.5,0.19756617]
[1748485786344,6.578,2741.9,2741.5,0.19756617]
[1748485786546,6.578,2741.9,2741.6,0.1991788]
[1748485786728,6.578,2741.9,2741.4,3.64772322]
[1748485786930,10.22511076,2741.9,2741.3,5.41991657]
[1748485787136,6.578,2741.9,2741.4,3.64776225]
[1748485787460,6.578,2741.9,2741.5,0.19916599]
[1748485787647,3.64737206,2741.7,2741.6,0.19916599]
[1748485787844,3.64737206,2741.7,2741.3,1.0]
[1748485787845,3.64777121,2741.4,2741.3,1.0]
[1748485788030,6.554,2741.4,2741.3,1.0]
[1748485788231,10.20177121,2741.4,2741.3,1.19928099]
[1748485788432,1.0704,2742.5,2741.3,4.84714906]
[1748485788636,3.64657404,2742.3,2741.4,0.19915837]
[1748485788888,3.64657404,2742.3,2741.3,9.0]
[1748485788889,3.64684001,2742.1,2741.5,0.19913771]
[1748485789034,0.30764224,2742.2,2741.3,4.64786683]
[1748485789243,3.64717807,2741.9,2741.4,0.19913341]
[1748485789574,3.64717807,2741.9,2741.3,4.64786683]
[1748485789575,6.557,2741.8,2741.5,0.19913415]
[1748485789879,6.557,2741.8,2741.6,0.19913415]
[1748485790182,6.557,2741.8,2741.7,0.19913415]
[1748485790478,6.557,2741.8,2741.7,0.19920691]
[1748485790630,6.557,2741.8,2741.3,4.64786683]
[1748485791753,6.557,2741.8,2741.3,1.0]
[1748485791949,6.557,2741.8,2741.3,4.6478917]
[1748485792274,6.557,2741.8,2741.3,1.0]
[1748485793184,6.557,2741.8,2741.4,0.19917621]
[1748485793355,6.489,2741.7,2741.5,0.19917293]
[1748485793552,3.64661686,2742.3,2741.6,0.19914459]
[1748485793765,3.64714326,2741.9,2741.3,1.0]
[1748485794238,3.64714326,2741.9,2741.3,4.64783265]
[1748485794434,1.0704,2742.5,2741.6,2.32207058]
[1748485794639,0.8416,2742.9,2742.1,1.77207058]
[1748485794640,0.05,2742.9,2742.1,1.77207058]
[1748485794879,0.05,2742.9,2742.6,1.77207058]
[1748485795088,0.05,2742.9,2742.8,12.19590928]
[1748485795383,0.05,2742.9,2742.8,13.59270727]
[1748485795882,0.05,2742.9,2742.8,13.79145162]
[1748485796052,0.05,2743.9,2743.6,3.64475474]
[1748485796382,0.05,2743.9,2743.8,11.6445805]
[1748485796582,0.05,2743.9,2743.8,12.91491853]
[1748485796878,0.05,2743.9,2743.8,12.7162805]
[1748485797278,0.05,2743.9,2743.8,9.0717]
[1748485797489,0.05,2743.9,2743.8,12.7162805]
[1748485797781,0.05,2743.9,2743.8,15.46549344]
[1748485797982,0.05,2743.9,2743.8,15.26686244]
[1748485798185,0.05,2743.9,2743.8,13.2662805]
[1748485798544,0.005,2744.3,2744.2,12.19404926]
[1748485799476,0.005,2744.3,2744.2,8.0]
[1748485799655,0.005,2744.3,2742.8,6.81183729]
[1748485799656,0.005,2744.3,2743.4,1.0236]
[1748485799857,0.005,2744.3,2743.7,1.77207058]
[1748485800058,0.005,2744.3,2744.2,3.64404926]
[1748485800369,0.005,2744.3,2744.2,6.16470092]
[1748485800684,0.005,2744.3,2744.2,5.96611984]
[1748485800886,0.005,2744.3,2744.2,7.02101984]
[1748485801090,7.872,2746.4,2744.3,0.55]
[1748485801091,1.0742,2746.3,2744.3,0.55]
[1748485801244,1.0742,2746.3,2744.2,3.18035005]
[1748485801245,6.69764224,2746.2,2744.2,3.18035005]
[1748485801445,0.30764224,2746.1,2745.1,0.55]
[1748485801654,3.64241134,2745.5,2744.9,8.0]
[1748485801987,0.30764224,2745.4,2745.3,12.19258915]
[1748485802158,0.30764224,2745.4,2745.3,15.01365973]
[1748485802993,0.30764224,2745.4,2745.3,13.24158915]
[1748485803346,4.0092491,2747.7,2745.4,0.55]
[1748485803656,4.0092491,2747.7,2746.1,3.64148724]
[1748485803657,3.64072434,2746.8,2746.1,3.64148724]
[1748485803857,3.64072434,2746.8,2746.0,3.64160972]
[1748485803858,6.66064224,2746.7,2746.0,3.64160972]
[1748485804060,0.30764224,2746.6,2746.1,3.6414498]
[1748485804368,0.30764224,2746.6,2745.9,3.64176468]
[1748485804369,6.65064224,2746.6,2746.2,3.6413111]
[1748485804570,6.65064224,2746.6,2745.9,8.0]
[1748485804571,0.30764224,2746.6,2746.3,3.64114921]
[1748485804882,0.30764224,2746.6,2746.3,3.64126278]
[1748485805345,0.30764224,2746.6,2746.3,8.55]
[1748485805545,0.30764224,2746.6,2746.3,0.55]
[1748485805885,0.30764224,2746.6,2746.5,3.64099763]
[1748485806067,0.30764224,2746.6,2746.5,11.64099763]
[1748485806269,0.30764224,2746.6,2746.5,12.19099763]
[1748485806639,1.0835,2747.3,2746.5,12.19099763]
[1748485806640,6.302,2747.0,2746.7,3.64071239]
[1748485806843,3.63985093,2747.4,2746.8,0.19812512]
[1748485807043,3.63985093,2747.4,2746.2,2.88397058]
[1748485807044,6.66098509,2747.3,2746.9,0.19818529]
[1748485807285,3.64042035,2747.0,2746.3,3.64117952]
[1748485807454,7.868,2747.6,2745.8,8.0]
[1748485807643,3.64031994,2747.1,2746.4,11.64108485]
[1748485807840,6.289,2747.0,2746.3,8.0]
[1748485808038,6.289,2747.0,2746.2,3.64138464]
[1748485808039,6.283,2746.9,2746.6,3.64082688]
[1748485808256,6.283,2746.9,2746.2,8.0]
[1748485808257,6.283,2746.9,2746.5,3.64094266]
[1748485808457,4.52931261,2747.5,2746.2,11.64133379]
[1748485808662,3.63808525,2748.7,2747.3,13.96189283]
[1748485808663,0.30764224,2747.4,2747.3,13.96189283]
[1748485808882,0.30764224,2747.4,2747.3,13.29962225]
[1748485809084,0.30764224,2747.4,2747.3,16.76566219]
[1748485809286,6.30808967,2749.0,2747.8,5.29907505]
[1748485809485,3.67379876,2749.0,2747.8,15.07114563]
[1748485809688,0.03608967,2749.0,2747.8,15.07114563]
[1748485809995,0.03608967,2749.0,2748.2,12.18874536]
[1748485810206,11.60183564,2750.0,2749.7,3.63676037]
[1748485810360,0.506356,2750.2,2750.1,4.1862314]
[1748485810561,4.96243923,2751.4,2750.2,0.55]
[1748485810761,4.96243923,2751.4,2751.3,9.77207058]
[1748485810980,4.96243923,2751.4,2751.3,0.55]
[1748485811178,2.30442221,2751.4,2751.3,2.32207058]
[1748485811378,0.005,2752.0,2751.4,8.0]
[1748485811549,0.005,2752.0,2751.9,17.50006471]
[1748485811750,0.35714286,2753.8,2751.9,17.50006471]
[1748485811751,0.35714286,2753.8,2752.9,3.6325228]
[1748485811970,0.35714286,2753.8,2752.1,0.03632102]
[1748485812167,0.35714286,2753.8,2751.9,2.18893154]
[1748485812398,0.35714286,2753.8,2752.0,0.19686908]
[1748485812712,1.84393014,2756.8,2754.0,0.2]
[1748485813009,4.28446642,2760.0,2754.4,5.25717942]
[1748485813010,1.80511272,2755.6,2754.4,5.25717942]
[1748485813216,0.07461645,2755.7,2755.5,3.62907652]
[1748485813420,0.02508318,2757.6,2755.0,3.62972842]
[1748485813421,0.02508318,2757.6,2755.7,8.0]
[1748485813707,0.02508318,2757.6,2755.7,1.1098]
[1748485813906,0.02508318,2757.6,2756.4,1.1098]
[1748485814111,0.02508318,2757.6,2756.4,0.98441715]
[1748485814326,0.00726491,2759.0,2756.4,0.98441715]
[1748485814612,3.62509496,2758.6,2754.8,8.0]
[1748485814764,1.1133,2758.9,2754.9,1.16300884]
[1748485814970,0.00726491,2759.0,2754.2,6.708]
[1748485814971,1.1133,2758.4,2754.2,6.708]
[1748485815174,3.62568434,2758.1,2754.6,3.63026757]
[1748485815411,3.6274884,2756.8,2754.4,1.7518562]
[1748485815612,8.21474884,2756.7,2754.6,1.7518562]
[1748485815815,0.36216195,2759.0,2754.6,3.63029114]
[1748485815816,0.00726491,2759.0,2754.6,3.63029114]
[1748485815971,1.1133,2757.8,2753.7,8.0]
[1748485816174,1.1133,2757.8,2755.2,1.7518562]
[1748485816370,0.00726491,2759.0,2755.2,1.7518562]
[1748485816371,1.12056491,2759.0,2755.8,1.7518562]
[1748485816684,1.12056491,2759.0,2755.3,8.0]
[1748485816685,0.00726491,2759.0,2755.9,6.905]
[1748485816930,0.00726491,2759.0,2755.1,0.2]
[1748485816931,0.00726491,2759.0,2758.8,3.6246824]
[1748485817246,0.00726491,2759.0,2758.3,0.03623132]
[1748485817446,0.00726491,2759.0,2758.6,3.62497874]
[1748485817644,0.00726491,2759.0,2758.7,0.0252]
[1748485817946,0.00726491,2759.0,2758.7,0.10403162]
[1748485818239,0.00726491,2759.0,2758.8,0.08065992]
[1748485818963,4.737933,2758.9,2758.8,0.08065992]
[1748485819100,4.737933,2758.9,2756.0,0.1058]
[1748485819101,8.0,2758.8,2756.0,0.1058]
[1748485819441,8.0,2758.8,2753.6,3.63150717]
[1748485819442,1.1295,2757.6,2754.4,0.1058]
[1748485819661,1.1295,2757.6,2755.1,1.7518562]
[1748485819802,3.62684065,2757.3,2755.6,3.62896654]
[1748485820003,3.62684065,2757.3,2755.2,0.40878439]
[1748485820004,0.36268407,2757.2,2755.7,0.30292942]
[1748485820208,3.6257533,2758.1,2755.8,0.1058]
[1748485820517,11.4660326,2757.9,2755.9,12.25876362]
[1748485820730,18.0,2758.1,2756.8,3.62726602]
[1748485820929,18.0,2758.1,2756.9,3.93002518]
[1748485821133,18.0,2758.1,2757.0,0.30278658]
[1748485821333,7.84,2758.5,2757.1,0.1058]
[1748485821517,1.1169,2758.9,2757.2,0.30276461]
[1748485821847,7.84,2758.8,2757.2,0.30276461]
[1748485822153,0.00726491,2759.0,2757.3,8.0]
[1748485822316,0.00726491,2759.0,2758.2,1.7518562]
[1748485822516,0.00726491,2759.0,2758.9,0.1058]
[1748485822827,0.00726491,2759.0,2758.9,3.730433]
[1748485823031,0.01857,2760.7,2758.9,3.730433]
[1748485823032,0.01857,2760.7,2758.9,0.7717507]
[1748485823202,0.01857,2760.7,2757.6,8.759281]
[1748485823402,0.01857,2760.7,2759.4,3.62385068]
[1748485823704,0.01857,2760.7,2758.4,5.2555686]
[1748485823705,0.01857,2760.7,2759.5,0.30251226]
[1748485824251,0.01857,2760.7,2759.5,0.1134421]
[1748485824461,1.296294,2760.0,2759.5,0.1134421]
[1748485825107,1.296294,2760.0,2759.6,0.55]
[1748485825308,3.62345097,2759.8,2759.7,0.30249034]
[1748485825548,1.296294,2760.0,2757.4,1.00546208]
[1748485825749,2.363394,2760.0,2758.5,3.6250489]
[1748485825907,2.363394,2760.0,2758.6,0.30261096]
[1748485826108,1.296294,2760.0,2758.6,0.30261096]
[1748485826306,1.296294,2760.0,2758.8,0.55]
[1748485826558,1.296294,2760.0,2758.9,0.30257805]
[1748485827123,1.296294,2760.0,2759.7,3.62346091]
[1748485827340,1.296294,2760.0,2758.9,8.30257805]
[1748485827341,1.85184119,2764.1,2761.3,3.62148263]
[1748485827561,1.85184119,2764.1,2761.3,3.9237977]
[1748485827709,3.5522306,2761.6,2761.5,11.62122035]
[1748485827910,1.85540697,2764.4,2761.5,9.96350186]
[1748485828133,1.85540697,2764.4,2761.6,4.79112699]
[1748485828410,3.61716008,2764.6,2761.7,0.30227128]
[1748485828625,3.61755236,2764.3,2761.7,8.30227128]
[1748485828837,1.7518562,2763.5,2761.7,0.30227128]
[1748485829038,3.61892491,2763.3,2761.7,0.30227128]
[1748485829361,7.826,2764.2,2761.7,0.30227128]
[1748485829362,0.03617581,2764.1,2761.8,1.0516]
[1748485829511,0.02664723,2764.5,2761.8,1.0672]
[1748485829707,0.02664723,2764.5,2763.5,1.0672]
[1748485829960,0.02664723,2764.5,2762.7,3.61959315]
[1748485829961,0.02664723,2764.5,2763.4,1.0672]
[1748485830469,0.02664723,2764.5,2761.8,3.62082699]
[1748485830470,3.61850975,2763.6,2761.8,3.62082699]
[1748485830753,3.61850975,2763.6,2761.2,1.0672]
[1748485830754,1.7518562,2763.3,2761.2,1.0672]
[1748485830965,1.7518562,2763.3,2759.1,3.62425459]
[1748485830966,1.7518562,2762.3,2759.6,1.0672]
[1748485831123,1.7518562,2762.3,2759.7,0.30249034]
[1748485831124,3.6209581,2761.7,2759.7,0.30249034]
[1748485831325,1.08,2761.5,2759.7,0.30249034]
[1748485831525,3.62135148,2761.4,2759.7,0.30249034]
[1748485831724,4.7012749,2761.5,2760.2,3.62282559]
[1748485832051,1.08,2761.5,2760.3,0.30242459]
[1748485832223,8.903,2761.5,2760.3,0.30242459]
[1748485832409,12.52425097,2761.5,2760.5,3.62249784]
[1748485832608,8.903,2761.5,2760.6,0.30239172]
[1748485833365,15.065,2762.3,2760.8,0.30236982]
[1748485833569,7.823,2762.3,2760.8,0.30236982]
[1748485833711,8.8889,2762.4,2760.8,0.30236982]
[1748485833916,3.62093718,2761.8,2760.8,0.30236982]
[1748485834140,3.62093718,2761.8,2760.9,3.62200731]
[1748485834141,0.36209372,2761.8,2760.9,3.62200731]
[1748485834357,8.8889,2762.4,2761.0,0.30234792]
[1748485834661,3.5037124,2764.0,2761.0,0.30234792]
[1748485834662,1.0659,2763.3,2761.7,3.62087682]
[1748485834861,1.0659,2763.3,2761.8,0.30226034]
[1748485834862,3.61912344,2763.1,2761.8,0.30226034]
[1748485835027,1.0659,2763.3,2761.8,0.30226034]
[1748485835028,0.36552993,2763.0,2761.8,0.30226034]
[1748485835216,1.7518562,2763.0,2761.8,0.30226034]
[1748485835416,1.0659,2763.3,2761.8,0.30226034]
[1748485835763,1.0659,2763.3,2760.0,1.0672]
[1748485835764,3.62017159,2762.3,2760.0,1.0672]
[1748485835919,8.28664716,2762.2,2760.0,1.0672]
[1748485836118,1.7518562,2761.4,2759.4,1.0672]
[1748485836319,1.1387,2763.5,2759.8,1.7518562]
[1748485836518,1.1387,2763.5,2760.7,1.0452]
[1748485836858,1.1387,2763.5,2761.1,8.0]
[1748485837162,5.2555686,2764.0,2760.7,9.0452]
[1748485837163,1.1156,2762.6,2760.7,1.0452]
[1748485837531,7.821,2763.0,2760.8,11.62209259]
[1748485837853,7.821,2763.0,2760.7,1.0452]
[1748485837854,3.62026739,2762.3,2761.3,3.62136562]
[1748485838012,1.7518562,2762.6,2760.7,1.0452]
[1748485838218,1.7518562,2762.6,2758.5,3.62502903]
[1748485838219,3.62084427,2761.8,2760.0,8.0]
[1748485838459,3.62084427,2761.8,2759.8,1.0672]
[1748485838460,3.62156902,2761.3,2760.3,3.62277471]
[1748485838642,11.44063921,2761.2,2759.9,3.62331968]
[1748485838925,11.44063921,2761.2,2759.8,1.0672]
[1748485838926,7.819,2761.2,2759.8,1.0672]
[1748485839114,7.819,2761.2,2758.3,1.7518562]
[1748485839115,3.62187613,2761.0,2758.3,1.7518562]
[1748485839326,3.62187613,2761.0,2758.2,1.0382]
[1748485839327,1.1084,2761.1,2758.7,3.62489578]
[1748485839526,0.89274,2761.0,2758.7,3.62489578]
[1748485839740,0.89274,2761.0,2758.8,3.66098926]
[1748485839965,0.89274,2761.0,2759.8,3.62335076]
[1748485839966,3.62225192,2760.8,2759.8,3.62335076]
[1748485840118,0.81368859,2760.8,2758.5,5.37700719]
[1748485840318,0.81368859,2760.8,2758.4,1.7518562]
[1748485840520,0.89274,2761.0,2758.4,1.7518562]
[1748485840521,0.89274,2761.0,2758.9,1.7518562]
[1748485840857,0.89274,2761.0,2760.5,3.62251244]
[1748485841026,1.1084,2761.1,2760.8,3.62206232]
[1748485841233,1.1084,2761.1,2760.8,3.62201456]
[1748485841442,1.1084,2761.1,2759.9,3.62331968]
[1748485841615,1.1084,2761.1,2759.6,8.0]
[1748485841815,2.00114,2761.1,2759.8,3.62334582]
[1748485842027,2.00114,2761.1,2758.9,3.64884021]
[1748485842228,2.00114,2761.1,2759.6,8.0]
[1748485842508,1.1662,2762.8,2759.7,3.62358227]
[1748485842768,1.1662,2762.8,2761.6,3.62097547]
[1748485842769,2.9180562,2762.8,2761.6,3.62097547]
[1748485842966,3.62088533,2761.8,2760.9,3.6218778]
[1748485843126,1.1662,2762.4,2760.1,8.0]
[1748485843127,1.1662,2762.4,2761.1,3.62165642]
[1748485843328,1.1662,2762.4,2760.4,3.62266338]
[1748485843666,1.1662,2762.4,2760.1,8.0]
[1748485843667,3.62094521,2761.8,2760.9,3.62197264]
[1748485843871,3.62069191,2762.0,2761.1,3.62174263]
[1748485844066,1.1662,2762.4,2761.1,3.62174263]
[1748485844367,1.1662,2762.4,2760.3,8.0]
[1748485844368,3.62070432,2761.9,2760.5,3.62253214]
[1748485844571,3.6205214,2762.1,2761.2,3.62153003]
[1748485844771,0.36205214,2762.0,2761.1,3.62173835]
[1748485844970,0.47861658,2762.3,2760.3,8.0]
[1748485845173,3.62017345,2762.3,2761.3,3.62148165]
[1748485845474,3.62017345,2762.3,2761.1,3.62169382]
[1748485845475,0.30764224,2763.4,2761.9,1.1987]
[1748485845681,0.30764224,2763.4,2762.4,3.619989]
[1748485845862,0.30764224,2763.4,2763.3,3.6188615]
[1748485846436,0.30764224,2763.4,2763.1,3.61900213]
[1748485846634,0.30764224,2763.4,2762.4,3.62004054]
[1748485846828,1.113,2763.5,2762.3,3.62017159]
[1748485847085,1.113,2764.2,2762.7,3.61964744]
[1748485847286,1.113,2764.2,2762.4,1.7518562]
[1748485847287,1.113,2764.2,2764.1,3.61781411]
[1748485847498,1.113,2764.7,2764.1,3.61777207]
[1748485847682,1.113,2764.7,2764.2,3.61759265]
[1748485847881,1.113,2764.7,2763.2,1.0994]
[1748485848087,1.113,2764.7,2764.1,3.61769289]
[1748485848605,1.113,2764.7,2764.2,3.61759915]
[1748485848805,1.113,2764.7,2764.3,3.61745779]
[1748485849108,1.113,2764.7,2763.1,3.61901999]
[1748485849308,0.05,2765.0,2764.4,4.7618215]
[1748485849629,0.05,2765.0,2763.7,3.61829341]
[1748485849630,0.05,2765.0,2763.9,1.1444]
[1748485849830,1.1413,2764.4,2763.0,9.1444]
[1748485850030,1.1413,2764.4,2763.0,1.1444]
[1748485850330,3.6192481,2763.1,2761.8,1.1444]
[1748485850513,0.05,2765.0,2763.4,1.1209]
[1748485850715,7.9690538,2767.9,2765.9,3.6154597]
[1748485850919,7.9690538,2767.9,2765.0,3.61663652]
[1748485850920,3.61327106,2767.6,2765.0,3.61663652]
[1748485851136,3.61528956,2766.1,2762.4,8.759281]
[1748485851440,1.1593,2764.6,2762.5,0.8759281]
[1748485851653,3.71534481,2766.0,2765.6,3.61585189]
[1748485851654,0.1,2766.0,2765.6,3.61585189]
[1748485851788,0.1,2766.0,2765.3,3.65236251]
[1748485851989,0.1,2766.0,2763.1,7.235]
[1748485851990,3.61589685,2765.6,2763.1,7.235]
[1748485852213,0.1,2766.0,2763.3,8.0]
[1748485852530,0.1,2766.0,2764.6,7.2343196]
[1748485852531,3.61524284,2765.9,2764.6,7.2343196]
[1748485852715,0.2,2765.8,2762.9,0.05527314]
[1748485852916,0.2,2765.8,2764.3,3.61755236]
[1748485853230,3.61524284,2765.9,2764.3,8.0]
[1748485853384,3.81524284,2765.9,2765.0,3.61659336]
[1748485853708,3.81524284,2765.9,2764.7,1.7518562]
[1748485853709,3.61524284,2765.9,2764.7,1.7518562]
[1748485853914,3.61524284,2765.9,2765.7,3.61567907]
[1748485854112,3.61524284,2765.9,2763.4,3.61861992]
[1748485854304,1.1059,2765.0,2763.0,3.61916565]
[1748485854500,1.1059,2765.0,2762.5,7.232]
[1748485854501,0.2,2764.7,2763.3,1.7518562]
[1748485854696,1.1059,2765.0,2760.1,2.62992668]
[1748485854697,0.2,2764.9,2760.1,2.62992668]
[1748485854910,0.2,2763.7,2762.1,1.7518562]
[1748485855116,1.2101,2763.8,2762.4,3.61999524]
[1748485855294,1.2101,2763.8,2761.6,5.2555686]
[1748485855295,0.2,2763.7,2762.3,1.7518562]
[1748485855630,0.2,2765.0,2763.2,5.2555686]
[1748485855846,0.2,2764.2,2763.3,1.7518562]
[1748485856139,0.2,2764.2,2763.3,5.3706921]
[1748485856300,0.2,2764.2,2763.3,1.7518562]
[1748485856504,0.38176005,2764.1,2763.4,3.61872476]
[1748485856721,0.2,2764.4,2762.9,0.05527314]
[1748485856895,3.81524284,2765.9,2764.0,15.7667058]
[1748485857118,3.81524284,2765.9,2762.9,3.67453252]
[1748485857119,0.2,2765.4,2762.9,3.67453252]
[1748485857296,0.2,2765.4,2764.2,1.7518562]
[1748485857490,0.2,2765.2,2764.3,1.7518562]
[1748485857696,0.2,2765.7,2764.8,1.7518562]
[1748485858015,0.2,2765.2,2764.4,3.61739694]
[1748485858221,0.2,2765.2,2761.6,3.62098751]
[1748485858392,0.2,2764.7,2763.5,1.7518562]
[1748485858728,0.2,2764.7,2764.0,1.7518562]
[1748485858928,0.2,2764.7,2763.2,5.2555686]
[1748485858929,0.2,2764.7,2764.2,1.7518562]
[1748485859226,1.3619,2765.1,2764.4,3.61729843]
[1748485859435,0.2,2764.8,2764.3,3.61754003]
[1748485859600,1.65971762,2765.1,2764.5,3.61718397]
[1748485859601,0.2,2765.0,2764.5,3.61718397]
[1748485859800,1.1619,2765.1,2764.7,5.36885771]
[1748485860139,3.81668816,2765.0,2764.3,1.7518562]
[1748485860346,1.05949658,2765.0,2764.3,5.36939171]